fUST/lending_fUST_20241128
["ID","MTS","AMOUNT","RATE_DAILY","PERIOD"]
[343650115,1732788639557,-500.0,0.00024657,3]
[343650116,1732788639568,-500.0,0.00024657,3]
[343650117,1732788639578,-500.0,0.00024657,3]
[343650118,1732788639589,-500.0,0.00024657,3]
[343650119,1732788639600,-500.0,0.00024657,3]
[343650120,1732788639611,-500.0,0.00024657,3]
[343650122,1732788639687,-500.0,0.00024657,3]
[343650123,1732788639697,-500.0,0.00024657,3]
[343650124,1732788639706,-500.0,0.00024657,3]
[343650125,1732788639715,-500.0,0.00024657,3]
[343650126,1732788639724,-500.0,0.00024657,3]
[343650127,1732788639734,-500.0,0.00024657,3]
[343650128,1732788639743,-500.0,0.00024657,3]
[343650129,1732788639752,-500.0,0.00024657,3]
[343650130,1732788639761,-447.39366954,0.00024657,3]
[343650131,1732788639770,-500.0,0.00024657,3]
[343650132,1732788639781,-638.09219408,0.00024657,3]
[343650133,1732788639791,-292.53244143,0.00024657,3]
[343650135,1732788640154,-209.89793275,0.00024657,3]
[343650136,1732788640163,-500.0,0.00024657,3]
[343650137,1732788640173,-500.0,0.00024657,3]
[343650138,1732788640182,-500.0,0.00024657,3]
[343650139,1732788640191,-541.37832806,0.00024657,3]
[343650140,1732788640200,-500.0,0.00024657,3]
[343650141,1732788640210,-500.0,0.00024657,3]
[343650142,1732788640219,-500.0,0.00024657,3]
[343650143,1732788640228,-426.81376348,0.00024657,3]
[343650144,1732788640238,-500.0,0.00024657,3]
[343650145,1732788640247,-500.0,0.00024657,3]
[343650146,1732788640256,-501.27094142,0.00024657,3]
[343650147,1732788640265,-528.73088453,0.00024657,3]
[343650148,1732788640274,-500.0,0.00024657,3]
[343650149,1732788640285,-159.38687405,0.00024657,3]
[343650154,1732788643210,-250.6383602,0.00023373,2]
[343650155,1732788643219,-880.35307692,0.00024656,2]
[343650156,1732788643228,-340.61312595,0.00024657,3]
[343650157,1732788643238,-239.78905484,0.00024657,3]
[343650158,1732788643250,-500.0,0.00024657,3]
[343650159,1732788643260,-500.0,0.00024657,3]
[343650160,1732788643269,-500.0,0.00024657,3]
[343650161,1732788643278,-500.0,0.00024657,3]
[343650162,1732788643288,-500.0,0.00024657,3]
[343650163,1732788643298,-567.76347471,0.00024657,3]
[343650164,1732788643307,-500.0,0.00024657,3]
[343650165,1732788643316,-500.0,0.00024657,3]
[343650167,1732788643326,-500.0,0.00024657,3]
[343650168,1732788643335,-500.0,0.00024657,3]
[343650169,1732788643344,-504.03013506,0.00024657,3]
[343650170,1732788643354,-500.0,0.00024657,3]
[343650171,1732788643363,-500.0,0.00024657,3]
[343650172,1732788643372,-500.0,0.00024657,3]
[343650173,1732788643381,-500.0,0.00024657,3]
[343650174,1732788643391,-500.0,0.00024657,3]
[343650175,1732788643400,-500.0,0.00024657,3]
[343650176,1732788643409,-500.0,0.00024657,3]
[343650177,1732788643418,-532.45006225,0.00024657,3]
[343650178,1732788643428,-500.0,0.00024657,3]
[343650179,1732788643438,-500.0,0.00024657,3]
[343650180,1732788643447,-500.0,0.00024657,3]
[343650181,1732788643457,-505.81485431,0.00024657,3]
[343650182,1732788643466,-500.0,0.00024657,3]
[343650183,1732788643475,-500.0,0.00024657,3]
[343650184,1732788643485,-500.0,0.00024657,3]
[343650185,1732788643494,-236.13314486,0.00024657,3]
[343650186,1732788643512,-263.86685514,0.00024657,3]
[343650187,1732788643521,-321.89953584,0.00024657,3]
[343650206,1732788704857,170.752034,0.00013973,2]
[343650207,1732788856564,405.44518269,0.00026,60]
[343650210,1732789426994,170.752034,0.00013973,2]
[343650212,1732789633130,-493.95294196,0.0002277,2]
[343650213,1732789633152,-300.0,0.00023489,2]
[343650214,1732789633175,-300.0,0.00023489,2]
[343650215,1732789633200,-562.59728288,0.0002349,2]
[343650220,1732789724927,1579.56265404,0.00021,2]
[343650221,1732789726278,6346.32465229,0.000109,2]
[343650242,1732789832634,-300.0,0.00023495,2]
[343650243,1732789832644,-24900.0,0.00023496,2]
[343650244,1732789832654,-491.5868058,0.00023502,2]
[343650245,1732789832663,-3000.00000001,0.00024,2]
[343650246,1732789832676,-310.01753851,0.00024243,2]
[343650247,1732789832687,-1515.27073789,0.000244,2]
[343650248,1732789832696,-699.99175166,0.00024473,2]
[343650249,1732789832706,-2000.0,0.000245,3]
[343650250,1732789832715,-467.6575396,0.000245,2]
[343650251,1732789832725,-216.8377998,0.000245,2]
[343650252,1732789832734,-890.96,0.00024547,3]
[343650253,1732789832744,-1039.43,0.00024547,3]
[343650254,1732789832753,-519.71,0.00024547,3]
[343650255,1732789832762,-259.86,0.00024547,3]
[343650256,1732789832771,-637.03632264,0.00024547,3]
[343650257,1732789832783,-142.54367736,0.00024547,3]
[343650259,1732789832792,-260.95476742,0.00024556,2]
[343650261,1732789832802,-500.0,0.00024556,2]
[343650263,1732789832811,-500.0,0.00024556,2]
[343650265,1732789832820,-500.0,0.00024556,2]
[343650266,1732789832829,-500.0,0.00024556,2]
[343650267,1732789832839,-500.0,0.00024556,2]
[343650268,1732789832848,-500.0,0.00024556,2]
[343650269,1732789832858,-500.0,0.00024556,2]
[343650270,1732789832867,-500.0,0.00024556,2]
[343650271,1732789832876,-500.0,0.00024556,2]
[343650272,1732789832885,-500.0,0.00024556,2]
[343650273,1732789832894,-500.0,0.00024556,2]
[343650274,1732789832903,-500.0,0.00024556,2]
[343650275,1732789832913,-632.40394185,0.00024556,2]
[343650276,1732789832922,-521.40579003,0.00024556,2]
[343650277,1732789832933,-177.88971045,0.00024556,2]
[343650278,1732789832943,-500.0,0.00024556,2]
[343650279,1732789832952,-500.0,0.00024556,2]
[343650280,1732789832961,-500.0,0.00024556,2]
[343650281,1732789832970,-167.49314035,0.00024556,2]
[343650282,1732789832980,-500.0,0.00024556,2]
[343650283,1732789832989,-500.0,0.00024556,2]
[343650284,1732789832998,-500.0,0.00024556,2]
[343650285,1732789833007,-500.0,0.00024556,2]
[343650286,1732789833021,-500.0,0.00024556,2]
[343650287,1732789833033,-500.0,0.00024556,2]
[343650288,1732789833043,-500.0,0.00024556,2]
[343650289,1732789833052,-500.0,0.00024556,2]
[343650290,1732789833061,-606.83966272,0.00024556,2]
[343650291,1732789833071,-500.0,0.00024556,2]
[343650292,1732789833081,-356.80755336,0.00024556,2]
[343650293,1732789833091,-500.0,0.00024556,2]
[343650294,1732789833100,-199.91384756,0.00024556,2]
[343650295,1732789833109,-500.0,0.00024556,2]
[343650296,1732789833119,-500.0,0.00024556,2]
[343650297,1732789833129,-500.0,0.00024556,2]
[343650298,1732789833139,-500.0,0.00024556,2]
[343650299,1732789833148,-500.0,0.00024556,2]
[343650300,1732789833158,-500.0,0.00024556,2]
[343650301,1732789833167,-500.0,0.00024556,2]
[343650302,1732789833270,-500.0,0.00024556,2]
[343650303,1732789833280,-2132.40135957,0.00024557,2]
[343650304,1732789833291,-222000.0,0.00024557,2]
[343650305,1732789833301,-666.0,0.00024557,2]
[343650306,1732789833311,-8132.01723807,0.00024557,2]
[343650307,1732789833320,-5000.0,0.00024557,2]
[343650308,1732789833330,-5000.0,0.00024557,2]
[343650309,1732789833339,-5000.0,0.00024557,2]
[343650310,1732789833349,-5000.0,0.00024557,2]
[343650311,1732789833358,-3667.734749,0.00024557,2]
[343650312,1732789833367,-1043.76735225,0.00024557,2]
[343650313,1732789833377,-151.0,0.00024557,7]
[343650314,1732789833387,-151.0,0.00024557,7]
[343650315,1732789833396,-500.0,0.00024573,2]
[343650316,1732789833405,-527.91128011,0.00024573,2]
[343650317,1732789833415,-500.0,0.00024573,2]
[343650318,1732789833426,-151.0,0.000246,8]
[343650319,1732789833437,-151.0,0.000246,8]
[343650320,1732789833447,-151.0,0.000246,6]
[343650321,1732789833458,-151.0,0.000246,10]
[343650322,1732789833469,-151.0,0.000246,10]
[343650323,1732789833480,-151.0,0.000246,9]
[343650324,1732789833491,-151.0,0.000246,8]
[343650325,1732789833502,-153.82142,0.000246,10]
[343650326,1732789833513,-201.31102,0.000246,7]
[343650327,1732789833523,-201.31102,0.000246,7]
[343650328,1732789833533,-151.0,0.000246,7]
[343650329,1732789833544,-151.0,0.000246,7]
[343650330,1732789833554,-151.0,0.000246,7]
[343650331,1732789833564,-151.0,0.000246,9]
[343650332,1732789833575,-151.0,0.000246,7]
[343650333,1732789833585,-151.0,0.000246,9]
[343650334,1732789833599,-151.0,0.000246,7]
[343650335,1732789833616,-151.0,0.000246,7]
[343650336,1732789833625,-186.411,0.00024613,7]
[343650337,1732789833635,-151.0,0.00024613,7]
[343650338,1732789833645,-151.0,0.00024613,7]
[343650339,1732789833655,-150.01,0.00024656,2]
[343650340,1732789833665,-178.31824433,0.00024656,2]
[343650341,1732789833675,-1318.4731106,0.00024656,2]
[343650342,1732789833685,-151.0,0.00024656,7]
[343650343,1732789833695,-433.152772,0.00024656,7]
[343650344,1732789833704,-433.152772,0.00024656,7]
[343650345,1732789833714,-151.0,0.00024656,7]
[343650346,1732789833724,-151.0,0.00024656,7]
[343650347,1732789833733,-151.0,0.00024656,7]
[343650348,1732789833743,-226.46009,0.00024656,7]
[343650349,1732789833752,-151.0,0.00024657,2]
[343650350,1732789833762,-284.768618,0.00024657,2]
[343650351,1732789833772,-256.590253,0.00024657,7]
[343650352,1732789833782,-26.35816411,0.00024657,3]
[343650357,1732789838735,-699.99175165,0.00024494,2]
[343650358,1732789838745,-6.47824835,0.00024515,2]
[343650359,1732789838757,-693.5135033,0.00024515,2]
[343650360,1732789838767,-699.99175165,0.00024536,2]
[343650361,1732789838777,-502.27540461,0.00024573,2]
[343650362,1732789838786,-357.97152906,0.00024657,3]
[343650363,1732789838795,-503.33549263,0.00024657,3]
[343650364,1732789838805,-500.0,0.00024657,3]
[343650365,1732789838814,-500.0,0.00024657,3]
[343650366,1732789838823,-500.0,0.00024657,3]
[343650367,1732789838833,-500.0,0.00024657,3]
[343650368,1732789838843,-500.0,0.00024657,3]
[343650369,1732789838852,-500.0,0.00024657,3]
[343650370,1732789838861,-500.0,0.00024657,3]
[343650371,1732789838870,-500.0,0.00024657,3]
[343650372,1732789838965,-282.05716843,0.00024657,3]
[343650373,1732789838978,-564.98822081,0.00024657,3]
[343650374,1732789838988,-508.07749402,0.00024657,3]
[343650375,1732789838998,-502.33686286,0.00024657,3]
[343650376,1732789839007,-503.04516794,0.00024657,3]
[343650377,1732789839017,-300.61077709,0.00024657,3]
[343650378,1732789839027,-500.0,0.00024657,3]
[343650379,1732789839035,-500.0,0.00024657,3]
[343650380,1732789839045,-500.0,0.00024657,3]
[343650381,1732789839055,-500.0,0.00024657,3]
[343650382,1732789839064,-435.67975722,0.00024657,3]
[343650383,1732789839073,-504.28139664,0.00024657,3]
[343650384,1732789839083,-500.0,0.00024657,3]
[343650385,1732789839093,-500.0,0.00024657,3]
[343650386,1732789839103,-504.41814984,0.00024657,3]
[343650387,1732789839113,-500.0,0.00024657,3]
[343650388,1732789839122,-500.0,0.00024657,3]
[343650389,1732789839132,-500.0,0.00024657,3]
[343650390,1732789839141,-500.0,0.00024657,3]
[343650391,1732789839151,-500.0,0.00024657,3]
[343650392,1732789839160,-501.6966657,0.00024657,3]
[343650393,1732789839170,-500.0,0.00024657,3]
[343650394,1732789839179,-500.0,0.00024657,3]
[343650395,1732789839190,-623.56201093,0.00024657,3]
[343650396,1732789839199,-501.66756884,0.00024657,3]
[343650397,1732789839209,-500.0,0.00024657,3]
[343650398,1732789839221,-500.0,0.00024657,3]
[343650399,1732789839231,-500.0,0.00024657,3]
[343650400,1732789839240,-500.0,0.00024657,3]
[343650401,1732789839251,-500.0,0.00024657,3]
[343650402,1732789839260,-500.0,0.00024657,3]
[343650403,1732789839270,-500.0,0.00024657,3]
[343650404,1732789839280,-509.70058836,0.00024657,3]
[343650405,1732789839294,-500.0,0.00024657,3]
[343650406,1732789839304,-500.0,0.00024657,3]
[343650407,1732789839313,-501.19753019,0.00024657,3]
[343650408,1732789839322,-500.0,0.00024657,3]
[343650409,1732789839332,-500.0,0.00024657,3]
[343650410,1732789839341,-500.0,0.00024657,3]
[343650411,1732789839351,-500.0,0.00024657,3]
[343650412,1732789839360,-609.39985656,0.00024657,3]
[343650413,1732789839369,-528.68226053,0.00024657,3]
[343650414,1732789839379,-501.8111553,0.00024657,3]
[343650415,1732789839388,-502.92387227,0.00024657,3]
[343650416,1732789839397,-500.0,0.00024657,3]
[343650417,1732789839407,-500.0,0.00024657,3]
[343650418,1732789839416,-500.0,0.00024657,3]
[343650419,1732789839425,-500.0,0.00024657,3]
[343650420,1732789839438,-500.0,0.00024657,3]
[343650421,1732789839447,-500.0,0.00024657,3]
[343650422,1732789839456,-500.0,0.00024657,3]
[343650423,1732789839466,-500.0,0.00024657,3]
[343650424,1732789839475,-501.09081226,0.00024657,3]
[343650425,1732789839484,-500.0,0.00024657,3]
[343650426,1732789839494,-501.36412558,0.00024657,3]
[343650427,1732789839504,-500.0,0.00024657,3]
[343650428,1732789839513,-235.38004213,0.00024657,3]
[343650429,1732789839523,-506.24473895,0.00024657,3]
[343650430,1732789839532,-500.0,0.00024657,3]
[343650431,1732789839542,-503.44404991,0.00024657,3]
[343650432,1732789839552,-501.60020279,0.00024657,3]
[343650433,1732789839562,-500.0,0.00024657,3]
[343650434,1732789839572,-500.0,0.00024657,3]
[343650435,1732789839581,-454.47808435,0.00024657,3]
[343650436,1732789839591,-500.0,0.00024657,3]
[343650437,1732789839600,-500.0,0.00024657,3]
[343650438,1732789839610,-500.0,0.00024657,3]
[343650439,1732789839619,-500.0,0.00024657,3]
[343650440,1732789839628,-500.0,0.00024657,3]
[343650441,1732789839637,-500.0,0.00024657,3]
[343650442,1732789839646,-500.0,0.00024657,3]
[343650443,1732789839656,-511.14548355,0.00024657,3]
[343650444,1732789839665,-507.97014127,0.00024657,3]
[343650445,1732789839674,-599.44,0.00024657,3]
[343650446,1732789839685,-599.44,0.00024657,3]
[343650447,1732789839694,-599.44,0.00024657,3]
[343650448,1732789839703,-599.44,0.00024657,3]
[343650449,1732789839711,-599.44,0.00024657,3]
[343650450,1732789839721,-599.44,0.00024657,3]
[343650451,1732789839730,-503.0656605,0.00024657,3]
[343650452,1732789839739,-599.44,0.00024657,3]
[343650453,1732789839748,-599.44,0.00024657,3]
[343650454,1732789839758,-599.44,0.00024657,3]
[343650455,1732789839768,-599.44,0.00024657,3]
[343650456,1732789839778,-599.44,0.00024657,3]
[343650457,1732789839787,-599.44,0.00024657,3]
[343650458,1732789839796,-599.44,0.00024657,3]
[343650459,1732789839804,-599.44,0.00024657,3]
[343650460,1732789839814,-500.96813819,0.00024657,3]
[343650461,1732789839823,-599.44,0.00024657,3]
[343650462,1732789839833,-599.44,0.00024657,3]
[343650463,1732789839843,-599.44,0.00024657,3]
[343650464,1732789839852,-599.44,0.00024657,3]
[343650466,1732789839862,-599.44,0.00024657,3]
[343650468,1732789839872,-599.44,0.00024657,3]
[343650469,1732789839881,-599.44,0.00024657,3]
[343650470,1732789839890,-599.44,0.00024657,3]
[343650471,1732789839899,-599.44,0.00024657,3]
[343650472,1732789839908,-599.46468918,0.00024657,3]
[343650473,1732789839917,-500.0,0.00024657,3]
[343650474,1732789839926,-500.0,0.00024657,3]
[343650476,1732789839936,-503.45166271,0.00024657,3]
[343650477,1732789839945,-500.0,0.00024657,3]
[343650478,1732789839954,-505.4781761,0.00024657,3]
[343650479,1732789839963,-500.0,0.00024657,3]
[343650480,1732789839972,-199.64665844,0.00024657,3]
[343650481,1732789839981,-501.14154987,0.00024657,3]
[343650482,1732789839990,-500.0,0.00024657,3]
[343650483,1732789840000,-505.20471726,0.00024657,3]
[343650484,1732789840010,-500.67992398,0.00024657,3]
[343650485,1732789840020,-500.81093584,0.00024657,3]
[343650486,1732789840029,-500.0,0.00024657,3]
[343650487,1732789840038,-500.0,0.00024657,3]
[343650488,1732789840047,-500.0,0.00024657,3]
[343650489,1732789840056,-500.0,0.00024657,3]
[343650490,1732789840065,-500.0,0.00024657,3]
[343650491,1732789840075,-500.0,0.00024657,3]
[343650492,1732789840084,-500.0,0.00024657,3]
[343650493,1732789840094,-500.0,0.00024657,3]
[343650494,1732789840103,-500.0,0.00024657,3]
[343650495,1732789840113,-500.0,0.00024657,3]
[343650496,1732789840122,-500.0,0.00024657,3]
[343650497,1732789840132,-500.0,0.00024657,3]
[343650498,1732789840142,-510.79268747,0.00024657,3]
[343650499,1732789840152,-500.98810496,0.00024657,3]
[343650500,1732789840162,-500.0,0.00024657,3]
[343650501,1732789840172,-517.03763491,0.00024657,3]
[343650502,1732789840182,-500.87176,0.00024657,3]
[343650503,1732789840192,-1000.0,0.00024657,10]
[343650504,1732789840203,-1000.0,0.00024657,10]
[343650505,1732789840214,-1000.0,0.00024657,10]
[343650506,1732789840224,-1012.89791136,0.00024657,10]
[343650507,1732789840233,-200.0,0.00024657,3]
[343650508,1732789840243,-200.0,0.00024657,3]
[343650509,1732789840253,-200.0,0.00024657,3]
[343650510,1732789840263,-200.0,0.00024657,3]
[343650511,1732789840273,-200.0,0.00024657,3]
[343650513,1732789840282,-200.0,0.00024657,3]
[343650514,1732789840293,-200.0,0.00024657,3]
[343650515,1732789840302,-200.0,0.00024657,3]
[343650516,1732789840374,-200.0,0.00024657,3]
[343650517,1732789840392,-207.78714794,0.00024657,3]
[343650518,1732789840402,-500.0,0.00024657,3]
[343650519,1732789840412,-500.0,0.00024657,3]
[343650520,1732789840422,-500.0,0.00024657,3]
[343650521,1732789840433,-503.70709539,0.00024657,3]
[343650522,1732789840443,-500.0,0.00024657,3]
[343650523,1732789840452,-500.0,0.00024657,3]
[343650524,1732789840462,-500.0,0.00024657,3]
[343650525,1732789840471,-500.0,0.00024657,3]
[343650526,1732789840481,-500.0,0.00024657,3]
[343650527,1732789840491,-500.0,0.00024657,3]
[343650528,1732789840501,-500.0,0.00024657,3]
[343650529,1732789840511,-500.0,0.00024657,3]
[343650530,1732789840523,-495.08038886,0.00024657,3]
[343650531,1732789840533,-500.0,0.00024657,3]
[343650532,1732789840543,-500.0,0.00024657,3]
[343650533,1732789840553,-500.0,0.00024657,3]
[343650534,1732789840563,-500.0,0.00024657,3]
[343650535,1732789840573,-451.37424209,0.00024657,3]
[343650536,1732789840582,-500.0,0.00024657,3]
[343650537,1732789840592,-500.0,0.00024657,3]
[343650538,1732789840602,-509.42899791,0.00024657,3]
[343650539,1732789840612,-509.67871588,0.00024657,3]
[343650540,1732789840621,-502.16956235,0.00024657,3]
[343650541,1732789840631,-500.0,0.00024657,3]
[343650542,1732789840640,-456.31938194,0.00024657,3]
[343650543,1732789840650,-500.0,0.00024657,3]
[343650544,1732789840659,-524.37089752,0.00024657,3]
[343650545,1732789840669,-500.0,0.00024657,3]
[343650546,1732789840678,-500.0,0.00024657,3]
[343650547,1732789840690,-500.0,0.00024657,3]
[343650548,1732789840699,-500.0,0.00024657,3]
[343650549,1732789840709,-500.0,0.00024657,3]
[343650550,1732789840718,-500.0,0.00024657,3]
[343650551,1732789840727,-500.0,0.00024657,3]
[343650552,1732789840736,-500.0,0.00024657,3]
[343650553,1732789840745,-500.0,0.00024657,3]
[343650554,1732789840755,-500.0,0.00024657,3]
[343650555,1732789840765,-500.0,0.00024657,3]
[343650556,1732789840774,-500.0,0.00024657,3]
[343650557,1732789840784,-500.0,0.00024657,3]
[343650558,1732789840793,-211.90796879,0.00024657,3]
[343650559,1732789840802,-500.0,0.00024657,3]
[343650560,1732789840811,-500.0,0.00024657,3]
[343650561,1732789840820,-500.0,0.00024657,3]
[343650562,1732789840830,-500.0,0.00024657,3]
[343650563,1732789840839,-453.47794531,0.00024657,3]
[343650564,1732789840849,-500.0,0.00024657,3]
[343650565,1732789840858,-505.19893022,0.00024657,3]
[343650566,1732789840868,-500.0,0.00024657,3]
[343650567,1732789840877,-500.0,0.00024657,3]
[343650568,1732789840886,-500.0,0.00024657,3]
[343650569,1732789840895,-500.0,0.00024657,3]
[343650570,1732789840905,-500.0,0.00024657,3]
[343650571,1732789840914,-503.51497263,0.00024657,3]
[343650572,1732789840924,-501.30456561,0.00024657,3]
[343650573,1732789840934,-500.0,0.00024657,3]
[343650574,1732789840944,-500.0,0.00024657,3]
[343650575,1732789840954,-500.0,0.00024657,3]
[343650576,1732789840963,-500.0,0.00024657,3]
[343650577,1732789840973,-500.0,0.00024657,3]
[343650578,1732789840983,-256.18294017,0.00024657,3]
[343650579,1732789840992,-500.0,0.00024657,3]
[343650580,1732789841001,-500.0,0.00024657,3]
[343650581,1732789841010,-277.98523591,0.00024657,3]
[343650582,1732789841020,-505.45461773,0.00024657,3]
[343650583,1732789841029,-500.0,0.00024657,3]
[343650584,1732789841038,-151.0,0.00024657,7]
[343650585,1732789841047,-500.0,0.00024657,3]
[343650586,1732789841057,-521.98692025,0.00024657,3]
[343650587,1732789841066,-151.0,0.00024657,7]
[343650588,1732789841076,-500.0,0.00024657,3]
[343650589,1732789841085,-500.0,0.00024657,3]
[343650590,1732789841094,-500.0,0.00024657,3]
[343650591,1732789841103,-500.0,0.00024657,3]
[343650592,1732789841112,-500.0,0.00024657,3]
[343650593,1732789841121,-500.0,0.00024657,3]
[343650594,1732789841130,-500.0,0.00024657,3]
[343650595,1732789841140,-500.0,0.00024657,3]
[343650596,1732789841149,-500.0,0.00024657,3]
[343650597,1732789841158,-500.0,0.00024657,3]
[343650598,1732789841167,-500.0,0.00024657,3]
[343650599,1732789841176,-500.0,0.00024657,3]
[343650600,1732789841186,-616.0883437,0.00024657,3]
[343650601,1732789841195,-500.0,0.00024657,3]
[343650602,1732789841205,-500.0,0.00024657,3]
[343650603,1732789841219,-500.0,0.00024657,3]
[343650604,1732789841228,-500.0,0.00024657,3]
[343650605,1732789841238,-500.0,0.00024657,3]
[343650606,1732789841247,-610.26643083,0.00024657,3]
[343650607,1732789841258,-500.0,0.00024657,3]
[343650608,1732789841268,-502.48704359,0.00024657,3]
[343650609,1732789841276,-500.0,0.00024657,3]
[343650610,1732789841286,-500.0,0.00024657,3]
[343650611,1732789841295,-506.88765858,0.00024657,3]
[343650612,1732789841305,-552.04704955,0.00024657,3]
[343650613,1732789841315,-500.0,0.00024657,3]
[343650614,1732789841324,-621.77781543,0.00024657,3]
[343650615,1732789841334,-500.0,0.00024657,3]
[343650616,1732789841343,-500.0,0.00024657,3]
[343650617,1732789841353,-503.29615958,0.00024657,3]
[343650618,1732789841362,-500.0,0.00024657,3]
[343650619,1732789841371,-500.0,0.00024657,3]
[343650620,1732789841380,-500.0,0.00024657,3]
[343650621,1732789841390,-500.0,0.00024657,3]
[343650622,1732789841399,-500.0,0.00024657,3]
[343650623,1732789841408,-500.0,0.00024657,3]
[343650624,1732789841418,-532.56417315,0.00024657,3]
[343650625,1732789841428,-501.17786164,0.00024657,3]
[343650626,1732789841441,-500.0,0.00024657,3]
[343650627,1732789841450,-501.87433893,0.00024657,3]
[343650628,1732789841459,-500.0,0.00024657,3]
[343650629,1732789841469,-500.0,0.00024657,3]
[343650630,1732789841478,-510.08027267,0.00024657,3]
[343650631,1732789841488,-500.0,0.00024657,3]
[343650632,1732789841497,-500.0,0.00024657,3]
[343650633,1732789841507,-500.0,0.00024657,3]
[343650634,1732789841518,-500.0,0.00024657,3]
[343650635,1732789841528,-375.9806892,0.00024657,3]
[343650636,1732789841538,-500.0,0.00024657,3]
[343650637,1732789841548,-500.0,0.00024657,3]
[343650638,1732789841558,-502.60299538,0.00024657,3]
[343650639,1732789841568,-500.0,0.00024657,3]
[343650640,1732789841577,-500.0,0.00024657,3]
[343650641,1732789841587,-248.50789767,0.00024657,3]
[343650642,1732789841597,-500.0,0.00024657,3]
[343650643,1732789841607,-500.0,0.00024657,3]
[343650644,1732789841616,-500.0,0.00024657,3]
[343650645,1732789841626,-500.0,0.00024657,3]
[343650646,1732789841704,-608.30761429,0.00024657,3]
[343650647,1732789841713,-500.0,0.00024657,3]
[343650648,1732789841723,-500.0,0.00024657,3]
[343650649,1732789841732,-500.0,0.00024657,3]
[343650650,1732789841742,-500.0,0.00024657,3]
[343650651,1732789841751,-500.0,0.00024657,3]
[343650652,1732789841761,-500.0,0.00024657,3]
[343650653,1732789841770,-500.0,0.00024657,3]
[343650654,1732789841779,-500.0,0.00024657,3]
[343650655,1732789841788,-500.0,0.00024657,3]
[343650656,1732789841797,-500.0,0.00024657,3]
[343650657,1732789841807,-500.0,0.00024657,3]
[343650658,1732789841816,-500.0,0.00024657,3]
[343650659,1732789841825,-500.0,0.00024657,3]
[343650660,1732789841835,-500.0,0.00024657,3]
[343650661,1732789841845,-500.0,0.00024657,3]
[343650662,1732789841854,-500.0,0.00024657,3]
[343650663,1732789841864,-500.0,0.00024657,3]
[343650664,1732789841873,-500.0,0.00024657,3]
[343650665,1732789841882,-500.0,0.00024657,3]
[343650666,1732789841892,-500.0,0.00024657,3]
[343650667,1732789841902,-295.79145256,0.00024657,3]
[343650668,1732789841912,-409.52304124,0.00024657,3]
[343650669,1732789841921,-150.0,0.00024657,3]
[343650670,1732789841931,-228.77846723,0.00024657,3]
[343650671,1732789841942,-500.0,0.00024657,3]
[343650672,1732789841951,-500.0,0.00024657,3]
[343650673,1732789841960,-500.0,0.00024657,3]
[343650674,1732789841969,-500.0,0.00024657,3]
[343650675,1732789841978,-500.0,0.00024657,3]
[343650676,1732789841987,-500.0,0.00024657,3]
[343650677,1732789841997,-500.0,0.00024657,3]
[343650678,1732789842006,-506.42959947,0.00024657,3]